fUSD/lending_fUSD_20241222
["ID","MTS","AMOUNT","RATE_DAILY","PERIOD"]
[346269218,1734855039140,-500.0,0.00019178,2]
[346269219,1734855039149,-1835.89,0.00019178,2]
[346269220,1734855039159,-500.0,0.00019178,2]
[346269221,1734855039168,-1138.53,0.00019178,2]
[346269222,1734855039177,-934.38,0.00019178,2]
[346269223,1734855039187,-5958.67,0.00019178,2]
[346269224,1734855039196,-1949.65,0.00019178,2]
[346269225,1734855039205,-520.64,0.00019178,2]
[346269226,1734855039214,-990.2,0.00019178,2]
[346269227,1734855039224,-4125.4,0.00019178,2]
[346269228,1734855039234,-849.45,0.00019178,2]
[346269229,1734855039248,-1435.34,0.00019178,2]
[346269230,1734855039258,-500.0,0.00019178,2]
[346269231,1734855039267,-517.55,0.00019178,2]
[346269232,1734855039275,-5482.78,0.00019178,2]
[346269233,1734855039286,-500.0,0.00019178,2]
[346269234,1734855039295,-728.48,0.00019178,2]
[346269235,1734855039304,-500.0,0.00019178,2]
[346269236,1734855039313,-881.7,0.00019178,2]
[346269237,1734855039324,-594.22,0.00019178,2]
[346269238,1734855039333,-635.47,0.00019178,2]
[346269239,1734855039342,-500.0,0.00019178,2]
[346269240,1734855039351,-1487.98,0.00019178,2]
[346269241,1734855039360,-592.88263067,0.00019178,2]
[346269242,1734855039369,-728.42,0.00019178,2]
[346269243,1734855039378,-500.0,0.00019178,2]
[346269244,1734855039387,-912.01,0.00019178,2]
[346269245,1734855039396,-500.0,0.00019178,2]
[346269246,1734855039405,-500.0,0.00019178,2]
[346269247,1734855039415,-2493.27,0.00019178,2]
[346269248,1734855039425,-331.16,0.00019191,2]
[346269249,1734855039434,-152.28219762,0.00019205,2]
[346269250,1734855039443,-27833.87797788,0.00019223,2]
[346269251,1734855039453,-317.72,0.00019225,2]
[346269252,1734855039462,-204.0,0.0001924,2]
[346269253,1734855039471,-27833.87797781,0.00019298,2]
[346269254,1734855039480,-331.16,0.00019313,2]
[346269255,1734855039490,-331.16,0.00019314,2]
[346269256,1734855039499,-331.16,0.00019314,2]
[346269257,1734855039508,-500.0,0.00019323,2]
[346269258,1734855039517,-500.0,0.00019323,2]
[346269259,1734855039526,-798.18,0.00019323,2]
[346269260,1734855039537,-500.0,0.00019323,2]
[346269261,1734855039546,-4015.83,0.00019323,2]
[346269262,1734855039555,-1330.15,0.00019323,2]
[346269263,1734855039564,-771.090061,0.00019323,2]
[346269264,1734855039573,-154.497728,0.00019323,2]
[346269265,1734855039582,-1208.458432,0.00019323,2]
[346269266,1734855039591,-500.0,0.00019323,2]
[346269267,1734855039600,-158.881523,0.00019323,2]
[346269268,1734855039609,-532.45,0.00019323,2]
[346269269,1734855039618,-958.8,0.00019323,2]
[346269270,1734855039627,-4371.29,0.00019323,2]
[346269271,1734855039636,-500.0,0.00019323,2]
[346269272,1734855039645,-648.78589536,0.00019323,2]
[346269273,1734855039654,-500.0,0.00019323,2]
[346269274,1734855039663,-859.75,0.00019323,2]
[346269275,1734855039672,-753.86,0.00019323,2]
[346269276,1734855039681,-500.0,0.00019323,2]
[346269277,1734855039690,-1455.36,0.00019323,2]
[346269278,1734855039699,-742.2,0.00019323,2]
[346269279,1734855039708,-1696.02,0.00019323,2]
[346269280,1734855039717,-3404.55,0.00019323,2]
[346269281,1734855039726,-1018.48,0.00019323,2]
[346269282,1734855039735,-998.42,0.00019323,2]
[346269283,1734855039744,-3373.62,0.00019323,2]
[346269284,1734855039754,-3080.5,0.00019323,2]
[346269285,1734855039763,-3333.49,0.00019323,2]
[346269286,1734855039772,-669.58,0.00019323,2]
[346269287,1734855039781,-500.0,0.00019323,2]
[346269288,1734855039790,-500.0,0.00019323,2]
[346269289,1734855039799,-10174.0,0.00019323,2]
[346269290,1734855039808,-500.0,0.00019323,2]
[346269291,1734855039817,-2311.35,0.00019323,2]
[346269292,1734855039826,-157.99933996,0.00019323,2]
[346269293,1734855039835,-125603.9212,0.00019324,2]
[346269294,1734855039848,-152.28219762,0.00019342,2]
[346269295,1734855039865,-225.27,0.00019359,2]
[346269296,1734855039879,-331.16,0.00019363,2]
[346269297,1734855039891,-27833.87797781,0.00019373,2]
[346269298,1734855039904,-1265.0,0.00019424,2]
[346269299,1734855039918,-2010.0,0.00019424,2]
[346269300,1734855039931,-634.624,0.00019424,2]
[346269301,1734855039944,-203.253,0.00019424,2]
[346269302,1734855039959,-212.033,0.00019424,2]
[346269303,1734855039970,-591.453,0.00019424,2]
[346269304,1734855039983,-1898.0,0.00019424,2]
[346269305,1734855039993,-818.0,0.00019424,2]
[346269306,1734855040006,-3770.0,0.00019424,2]
[346269307,1734855040020,-927.0,0.00019424,2]
[346269308,1734855040032,-1256.0,0.00019424,2]
[346269309,1734855040046,-536.0,0.00019424,2]
[346269310,1734855040060,-3682.0,0.00019424,2]
[346269311,1734855040078,-1170.0,0.00019424,2]
[346269312,1734855040092,-13756.0,0.00019424,2]
[346269313,1734855040109,-150.0,0.00019424,2]
[346269314,1734855040129,-157.59283735,0.00019442,2]
[346269315,1734855040141,-166.06,0.00019442,2]
[346269318,1734855040154,-27833.87797781,0.00019449,2]
[346269319,1734855040166,-500.0,0.00019452,2]
[346269320,1734855040179,-2771.21,0.00019452,2]
[346269321,1734855040194,-970.24,0.00019452,2]
[346269322,1734855040207,-606.63,0.00019452,2]
[346269323,1734855040219,-1835.89,0.00019452,2]
[346269324,1734855040230,-500.0,0.00019452,2]
[346269325,1734855040244,-1138.53,0.00019452,2]
[346269326,1734855040262,-934.38,0.00019452,2]
[346269327,1734855040274,-5958.67,0.00019452,2]
[346269328,1734855040286,-1949.65,0.00019452,2]
[346269329,1734855040298,-520.64,0.00019452,2]
[346269330,1734855040311,-990.2,0.00019452,2]
[346269331,1734855040326,-4125.4,0.00019452,2]
[346269332,1734855040337,-849.45,0.00019452,2]
[346269333,1734855040348,-1435.34,0.00019452,2]
[346269334,1734855040360,-500.0,0.00019452,2]
[346269335,1734855040372,-517.55,0.00019452,2]
[346269336,1734855040384,-5482.78,0.00019452,2]
[346269337,1734855040396,-568.03,0.00019452,2]
[346269338,1734855040409,-728.48,0.00019452,2]
[346269339,1734855040421,-500.0,0.00019452,2]
[346269340,1734855040435,-881.7,0.00019452,2]
[346269341,1734855040447,-594.22,0.00019452,2]
[346269342,1734855040459,-635.47,0.00019452,2]
[346269343,1734855040471,-500.0,0.00019452,2]
[346269344,1734855040482,-1487.98,0.00019452,2]
[346269345,1734855040493,-728.42,0.00019452,2]
[346269346,1734855040507,-500.0,0.00019452,2]
[346269347,1734855040519,-912.01,0.00019452,2]
[346269348,1734855040531,-500.0,0.00019452,2]
[346269349,1734855040542,-507.8826067,0.00019452,2]
[346269350,1734855040554,-323.56640913,0.00019472,2]
[346269351,1734855040567,-152.28219762,0.00019479,2]
[346269352,1734855040578,-204.0,0.0001949,2]
[346269353,1734855040591,-364.42600606,0.00019495,2]
[346269354,1734855040602,-184.22310168,0.00019496,2]
[346269355,1734855040614,-166.95378811,0.00019496,2]
[346269356,1734855040626,-10000.0,0.000195,4]
[346269357,1734855040637,-171.24,0.00019515,2]
[346269358,1734855040649,-27833.87797781,0.00019524,2]
[346269359,1734855040661,-364.42600604,0.00019558,2]
[346269360,1734855040672,-500.0,0.00019573,2]
[346269361,1734855040683,-500.0,0.00019573,2]
[346269362,1734855040695,-152.28219762,0.00019589,2]
[346269363,1734855040706,-500.0,0.00019595,2]
[346269364,1734855040717,-500.0,0.00019595,2]
[346269365,1734855040728,-500.0,0.00019595,2]
[346269366,1734855040740,-500.0,0.00019595,2]
[346269367,1734855040755,-500.0,0.00019595,2]
[346269368,1734855040766,-505.42166181,0.00019595,2]
[346269369,1734855040778,-500.0,0.00019595,2]
[346269370,1734855040789,-500.0,0.00019595,2]
[346269371,1734855040800,-500.0,0.00019595,2]
[346269372,1734855040812,-504.41460132,0.00019595,2]
[346269373,1734855040824,-501.75768626,0.00019595,2]
[346269374,1734855040836,-501.65314674,0.00019595,2]
[346269375,1734855040847,-501.36014027,0.00019595,2]
[346269376,1734855040859,-507.39501079,0.00019595,2]
[346269377,1734855040871,-502.61372343,0.00019595,2]
[346269378,1734855040883,-500.0,0.00019595,2]
[346269379,1734855040894,-500.57417738,0.00019595,2]
[346269380,1734855040906,-500.0,0.00019595,2]
[346269381,1734855040918,-500.0,0.00019595,2]
[346269382,1734855040929,-500.0,0.00019595,2]
[346269383,1734855040940,-500.0,0.00019595,2]
[346269384,1734855040952,-501.91797958,0.00019595,2]
[346269385,1734855040963,-500.0,0.00019595,2]
[346269386,1734855040975,-500.0,0.00019595,2]
[346269387,1734855040986,-500.0,0.00019595,2]
[346269388,1734855040997,-500.0,0.00019595,2]
[346269389,1734855041010,-500.0,0.00019595,2]
[346269390,1734855041022,-271.60181342,0.00019595,2]
[346269391,1734855041033,-500.0,0.00019595,2]
[346269392,1734855041044,-251.6451559,0.00019595,2]
[346269393,1734855041057,-500.0,0.00019595,2]
[346269394,1734855041069,-500.0,0.00019595,2]
[346269395,1734855041080,-500.0,0.00019595,2]
[346269396,1734855041092,-500.0,0.00019595,2]
[346269397,1734855041104,-500.0,0.00019595,2]
[346269398,1734855041115,-500.0,0.00019595,2]
[346269399,1734855041127,-501.81519913,0.00019595,2]
[346269400,1734855041139,-500.0,0.00019595,2]
[346269401,1734855041150,-500.83684614,0.00019595,2]
[346269402,1734855041162,-501.71667172,0.00019595,2]
[346269403,1734855041173,-500.0,0.00019595,2]
[346269404,1734855041185,-500.0,0.00019595,2]
[346269405,1734855041196,-223.14458597,0.00019595,2]
[346269406,1734855041208,-500.0,0.00019595,2]
[346269407,1734855041220,-500.0,0.00019595,2]
[346269408,1734855041231,-500.0,0.00019595,2]
[346269409,1734855041246,-500.0,0.00019595,2]
[346269410,1734855041259,-500.0,0.00019595,2]
[346269411,1734855041270,-500.0,0.00019595,2]
[346269412,1734855041283,-500.0,0.00019595,2]
[346269413,1734855041295,-500.0,0.00019595,2]
[346269414,1734855041306,-500.0,0.00019595,2]
[346269415,1734855041318,-504.18564778,0.00019595,2]
[346269416,1734855041330,-500.0,0.00019595,2]
[346269417,1734855041342,-503.84615752,0.00019595,2]
[346269418,1734855041354,-500.35381653,0.00019595,2]
[346269419,1734855041365,-500.0,0.00019595,2]
[346269420,1734855041377,-503.04086743,0.00019595,2]
[346269421,1734855041388,-500.0,0.00019595,2]
[346269422,1734855041400,-500.0,0.00019595,2]
[346269423,1734855041412,-500.0,0.00019595,2]
[346269424,1734855041423,-500.0,0.00019595,2]
[346269425,1734855041435,-500.0,0.00019595,2]
[346269426,1734855041447,-501.34093506,0.00019595,2]
[346269427,1734855041459,-815.5,0.00019595,2]
[346269428,1734855041470,-500.95571659,0.00019595,2]
[346269429,1734855041480,-500.0,0.00019595,2]
[346269430,1734855041489,-502.75249162,0.00019595,2]
[346269431,1734855041499,-500.0,0.00019595,2]
[346269432,1734855041509,-500.0,0.00019595,2]
[346269433,1734855041518,-504.70799029,0.00019595,2]
[346269434,1734855041527,-500.0,0.00019595,2]
[346269435,1734855041536,-500.0,0.00019595,2]
[346269436,1734855041546,-504.44848516,0.00019595,2]
[346269437,1734855041555,-500.0,0.00019595,2]
[346269438,1734855041812,-500.0,0.00019595,2]
[346269439,1734855041829,-500.0,0.00019595,2]
[346269440,1734855041838,-500.0,0.00019595,2]
[346269441,1734855041848,-500.0,0.00019595,2]
[346269442,1734855041857,-500.0,0.00019595,2]
[346269443,1734855041866,-502.21908684,0.00019595,2]
[346269444,1734855041875,-500.0,0.00019595,2]
[346269445,1734855041884,-506.50018994,0.00019595,2]
[346269446,1734855041894,-500.0,0.00019595,2]
[346269447,1734855041903,-383.73465338,0.00019595,2]
[346269448,1734855041912,-500.0,0.00019595,2]
[346269449,1734855041921,-503.65636631,0.00019595,2]
[346269450,1734855041930,-500.0,0.00019595,2]
[346269451,1734855041939,-500.0,0.00019595,2]
[346269452,1734855041948,-502.01535844,0.00019595,2]
[346269453,1734855041958,-500.0,0.00019595,2]
[346269454,1734855041967,-500.0,0.00019595,2]
[346269455,1734855041975,-507.14588018,0.00019595,2]
[346269456,1734855041984,-597.2,0.00019595,2]
[346269457,1734855041993,-502.08182068,0.00019595,2]
[346269458,1734855042004,-500.0,0.00019595,2]
[346269459,1734855042013,-500.0,0.00019595,2]
[346269460,1734855042023,-500.0,0.00019595,2]
[346269461,1734855042031,-500.0,0.00019595,2]
[346269462,1734855042041,-500.0,0.00019595,2]
[346269463,1734855042050,-505.31149653,0.00019595,2]
[346269464,1734855042059,-500.67860864,0.00019595,2]
[346269465,1734855042068,-461.22859642,0.00019595,2]
[346269466,1734855042077,-521.13948146,0.00019595,2]
[346269467,1734855042086,-500.0,0.00019595,2]
[346269468,1734855042096,-500.0,0.00019595,2]
[346269469,1734855042105,-509.55216099,0.00019595,2]
[346269470,1734855042115,-500.61279199,0.00019595,2]
[346269471,1734855042123,-514.0491422,0.00019595,2]
[346269472,1734855042133,-500.0,0.00019595,2]
[346269473,1734855042142,-500.0,0.00019595,2]
[346269474,1734855042151,-500.0,0.00019595,2]
[346269475,1734855042160,-500.0,0.00019595,2]
[346269476,1734855042169,-500.0,0.00019595,2]
[346269477,1734855042178,-500.0,0.00019595,2]
[346269478,1734855042187,-199.97101509,0.00019595,2]
[346269479,1734855042196,-504.66640903,0.00019595,2]
[346269480,1734855042205,-500.0,0.00019595,2]
[346269481,1734855042214,-503.23705959,0.00019595,2]
[346269482,1734855042223,-502.99771732,0.00019595,2]
[346269483,1734855042235,-509.36134225,0.00019595,2]
[346269484,1734855042245,-500.0,0.00019595,2]
[346269485,1734855042255,-500.0,0.00019595,2]
[346269486,1734855042264,-500.0,0.00019595,2]
[346269487,1734855042274,-500.0,0.00019595,2]
[346269488,1734855042284,-500.0,0.00019595,2]
[346269489,1734855042293,-500.0,0.00019595,2]
[346269490,1734855042302,-500.0,0.00019595,2]
[346269491,1734855042313,-500.0,0.00019595,2]
[346269492,1734855042322,-558.60648965,0.00019595,2]
[346269493,1734855042331,-500.0,0.00019595,2]
[346269494,1734855042340,-500.0,0.00019595,2]
[346269495,1734855042349,-500.0,0.00019595,2]
[346269496,1734855042358,-502.73846563,0.00019595,2]
[346269497,1734855042368,-500.0,0.00019595,2]
[346269498,1734855042378,-500.0,0.00019595,2]
[346269499,1734855042387,-506.12383212,0.00019595,2]
[346269500,1734855042395,-500.0,0.00019595,2]
[346269501,1734855042404,-500.0,0.00019595,2]
[346269502,1734855042414,-500.0,0.00019595,2]
[346269503,1734855042423,-500.0,0.00019595,2]
[346269504,1734855042432,-500.87531381,0.00019595,2]
[346269505,1734855042442,-500.0,0.00019595,2]
[346269506,1734855042451,-503.12705481,0.00019595,2]
[346269507,1734855042460,-500.0,0.00019595,2]
[346269508,1734855042469,-510.9287454,0.00019595,2]
[346269509,1734855042478,-503.54873813,0.00019595,2]
[346269510,1734855042487,-500.0,0.00019595,2]
[346269511,1734855042496,-500.0,0.00019595,2]
[346269512,1734855042507,-500.0,0.00019595,2]
[346269513,1734855042516,-502.6787425,0.00019595,2]
[346269514,1734855042525,-500.91050755,0.00019595,2]
[346269515,1734855042534,-500.0,0.00019595,2]
[346269516,1734855042543,-500.0,0.00019595,2]
[346269517,1734855042552,-500.0,0.00019595,2]
[346269518,1734855042561,-502.44047225,0.00019595,2]
[346269519,1734855042570,-500.0,0.00019595,2]
[346269520,1734855042579,-500.0,0.00019595,2]
[346269521,1734855042589,-500.0,0.00019595,2]
[346269522,1734855042598,-500.0,0.00019595,2]
[346269523,1734855042607,-500.0,0.00019595,2]
[346269524,1734855042616,-503.44542356,0.00019595,2]
[346269525,1734855042625,-500.0,0.00019595,2]
[346269526,1734855042635,-503.09251165,0.00019595,2]
[346269527,1734855042644,-500.0,0.00019595,2]
[346269528,1734855042652,-503.04656669,0.00019595,2]
[346269529,1734855042662,-500.0,0.00019595,2]
[346269530,1734855042671,-517.73221859,0.00019595,2]
[346269531,1734855042680,-500.0,0.00019595,2]
[346269532,1734855042689,-500.0,0.00019595,2]
[346269533,1734855042698,-502.31251088,0.00019595,2]
[346269534,1734855042709,-500.0,0.00019595,2]
[346269535,1734855042718,-500.0,0.00019595,2]
[346269536,1734855042727,-502.19187961,0.00019595,2]
[346269537,1734855042736,-500.0,0.00019595,2]
[346269538,1734855042745,-603.81780134,0.00019595,2]
[346269539,1734855042756,-500.0,0.00019595,2]
[346269540,1734855042765,-500.0,0.00019595,2]
[346269541,1734855042774,-500.0,0.00019595,2]
[346269542,1734855042783,-500.0,0.00019595,2]
[346269543,1734855042794,-200.0,0.00019595,2]
[346269544,1734855042804,-500.0,0.00019595,2]
[346269545,1734855042815,-500.0,0.00019595,2]
[346269546,1734855042835,-503.82899292,0.00019595,2]
[346269547,1734855042845,-500.0,0.00019595,2]
[346269548,1734855042854,-505.80052617,0.00019595,2]
[346269549,1734855042863,-500.0,0.00019595,2]
[346269550,1734855042872,-504.41939269,0.00019595,2]
[346269551,1734855042881,-500.0,0.00019595,2]
[346269552,1734855042890,-500.0,0.00019595,2]
[346269553,1734855042898,-500.0,0.00019595,2]
[346269554,1734855042907,-500.0,0.00019595,2]
[346269555,1734855042916,-500.0,0.00019595,2]
[346269556,1734855042925,-500.0,0.00019595,2]
[346269557,1734855042934,-500.0,0.00019595,2]
[346269558,1734855042943,-503.31005371,0.00019595,2]
[346269559,1734855042952,-500.0,0.00019595,2]
[346269561,1734855042961,-500.0,0.00019595,2]
[346269562,1734855042970,-500.0,0.00019595,2]
[346269563,1734855042979,-500.0,0.00019595,2]
[346269564,1734855042988,-506.02459979,0.00019595,2]
[346269565,1734855042997,-500.0,0.00019595,2]
[346269566,1734855043008,-500.0,0.00019595,2]
[346269567,1734855043017,-500.0,0.00019595,2]
[346269568,1734855043026,-503.4112919,0.00019595,2]
[346269569,1734855043035,-505.12358403,0.00019595,2]
[346269570,1734855043044,-502.33681552,0.00019595,2]
[346269571,1734855043053,-397.1114101,0.00019595,2]
[346269572,1734855043062,-500.0,0.00019595,2]
[346269573,1734855043071,-504.72503087,0.00019595,2]
[346269574,1734855043080,-982.45,0.00019595,2]
[346269575,1734855043089,-502.95373048,0.00019595,2]
[346269577,1734855043099,-500.0,0.00019595,2]
[346269578,1734855043108,-500.0,0.00019595,2]
[346269579,1734855043117,-505.22363502,0.00019595,2]
[346269580,1734855043126,-500.0,0.00019595,2]
[346269581,1734855043135,-502.37132887,0.00019595,2]
[346269582,1734855043143,-500.0,0.00019595,2]
[346269583,1734855043153,-500.0,0.00019595,2]
[346269585,1734855043162,-502.51231013,0.00019595,2]
[346269588,1734855043170,-500.0,0.00019595,2]
[346269590,1734855043179,-502.98620154,0.00019595,2]
[346269593,1734855043189,-500.0,0.00019595,2]
[346269596,1734855043198,-500.0,0.00019595,2]
[346269599,1734855043207,-500.0,0.00019595,2]
[346269602,1734855043216,-443.13692722,0.00019595,2]
[346269605,1734855043225,-500.0,0.00019595,2]
[346269607,1734855043238,-500.0,0.00019595,2]
[346269609,1734855043254,-501.72067959,0.00019595,2]
[346269611,1734855043265,-500.0,0.00019595,2]
[346269612,1734855043276,-504.94644902,0.00019595,2]
[346269613,1734855043290,-500.0,0.00019595,2]
[346269614,1734855043300,-236.64498975,0.00019595,2]
[346269615,1734855043311,-500.0,0.00019595,2]
[346269616,1734855043325,-500.00352908,0.00019595,2]
[346269617,1734855043335,-504.03147038,0.00019595,2]
[346269618,1734855043345,-501.20285188,0.00019595,2]
[346269619,1734855043355,-252.49156168,0.00019595,2]
[346269620,1734855043365,-501.09976344,0.00019595,2]
[346269621,1734855043374,-500.0,0.00019595,2]
[346269622,1734855043384,-500.0,0.00019595,2]
[346269623,1734855043393,-508.67291405,0.00019595,2]
[346269624,1734855043402,-554.93319425,0.00019595,2]
[346269625,1734855043412,-500.0,0.00019595,2]
[346269626,1734855043421,-500.0,0.00019595,2]
[346269627,1734855043431,-500.0,0.00019595,2]
[346269628,1734855043440,-500.0,0.00019595,2]
[346269629,1734855043451,-500.0,0.00019595,2]
[346269630,1734855043460,-500.0,0.00019595,2]
[346269631,1734855043470,-500.0,0.00019595,2]
[346269632,1734855043479,-500.0,0.00019595,2]
[346269633,1734855043489,-612.92,0.00019595,2]
[346269634,1734855043498,-500.0,0.00019595,2]
[346269635,1734855043510,-500.0,0.00019595,2]
[346269636,1734855043519,-505.2525592,0.00019595,2]
[346269637,1734855043529,-500.0,0.00019595,2]
[346269638,1734855043539,-500.0,0.00019595,2]
[346269639,1734855043549,-500.0,0.00019595,2]
[346269640,1734855043559,-500.0,0.00019595,2]
[346269641,1734855043568,-500.0,0.00019595,2]
[346269642,1734855043579,-150.22205419,0.00019595,2]
[346269643,1734855043588,-501.25661253,0.00019595,2]
[346269644,1734855043598,-500.0,0.00019595,2]
[346269645,1734855043608,-500.61321853,0.00019595,2]
[346269646,1734855043618,-500.0,0.00019595,2]
[346269647,1734855043627,-500.0,0.00019595,2]
[346269648,1734855043637,-1160.1,0.00019595,2]
[346269649,1734855043646,-500.0,0.00019595,2]
[346269650,1734855043656,-500.0,0.00019595,2]
[346269651,1734855043666,-500.81674877,0.00019595,2]
[346269652,1734855043676,-504.30534667,0.00019595,2]
[346269653,1734855043685,-500.0,0.00019595,2]
[346269654,1734855043694,-500.0,0.00019595,2]
[346269655,1734855043704,-500.0,0.00019595,2]
[346269656,1734855043713,-500.0,0.00019595,2]
[346269657,1734855043723,-511.11787748,0.00019595,2]
[346269658,1734855043732,-500.0,0.00019595,2]
[346269659,1734855043741,-500.0,0.00019595,2]
[346269660,1734855043751,-500.0,0.00019595,2]
[346269661,1734855043766,-469.24416306,0.00019595,2]
[346269662,1734855043775,-500.0,0.00019595,2]
[346269663,1734855043786,-503.9457786,0.00019595,2]
[346269664,1734855043795,-500.0,0.00019595,2]
[346269665,1734855043805,-500.0,0.00019595,2]
[346269666,1734855043815,-500.0,0.00019595,2]
[346269667,1734855043825,-501.72271429,0.00019595,2]
[346269668,1734855043835,-502.2183248,0.00019595,2]
[346269669,1734855043844,-500.0,0.00019595,2]
[346269670,1734855043854,-500.90711174,0.00019595,2]
[346269671,1734855043863,-502.04580981,0.00019595,2]
[346269672,1734855043874,-500.0,0.00019595,2]
[346269673,1734855043884,-500.0,0.00019595,2]
[346269674,1734855043894,-500.0,0.00019595,2]
[346269675,1734855043905,-500.0,0.00019595,2]
[346269676,1734855043915,-501.69465181,0.00019595,2]
[346269677,1734855043926,-500.0,0.00019595,2]
[346269678,1734855043935,-500.0,0.00019595,2]
[346269679,1734855043946,-500.0,0.00019595,2]
[346269680,1734855043956,-500.0,0.00019595,2]
[346269681,1734855043971,-500.0,0.00019595,2]
[346269682,1734855043980,-500.0,0.00019595,2]
[346269683,1734855043990,-501.17042854,0.00019595,2]
[346269684,1734855043999,-500.0,0.00019595,2]
[346269685,1734855044013,-500.0,0.00019595,2]
[346269686,1734855044023,-500.0,0.00019595,2]
[346269687,1734855044033,-500.0,0.00019595,2]
[346269688,1734855044042,-500.0,0.00019595,2]
[346269689,1734855044053,-500.0,0.00019595,2]
[346269690,1734855044063,-504.84159766,0.00019595,2]
[346269691,1734855044072,-500.0,0.00019595,2]
[346269692,1734855044083,-500.0,0.00019595,2]
[346269693,1734855044093,-500.0,0.00019595,2]
[346269694,1734855044104,-795.12,0.00019595,2]
[346269695,1734855044113,-500.0,0.00019595,2]
[346269696,1734855044122,-713.25,0.00019595,2]
[346269697,1734855044132,-500.0,0.00019595,2]
[346269698,1734855044142,-501.25150434,0.00019595,2]
[346269699,1734855044152,-517.64036478,0.00019595,2]
[346269700,1734855044162,-500.0,0.00019595,2]
[346269701,1734855044174,-500.0,0.00019595,2]
[346269702,1734855044186,-500.0,0.00019595,2]
[346269703,1734855044197,-500.0,0.00019595,2]
[346269704,1734855044207,-500.0,0.00019595,2]
[346269705,1734855044218,-500.0,0.00019595,2]
[346269706,1734855044228,-500.0,0.00019595,2]
[346269707,1734855044245,-500.0,0.00019595,2]
[346269708,1734855044256,-500.0,0.00019595,2]
[346269709,1734855044266,-500.0,0.00019595,2]
[346269710,1734855044277,-500.0,0.00019595,2]
[346269711,1734855044288,-500.0,0.00019595,2]
[346269712,1734855044297,-500.0,0.00019595,2]
[346269713,1734855044307,-500.0,0.00019595,2]
[346269714,1734855044316,-500.0,0.00019595,2]
[346269715,1734855044326,-500.0,0.00019595,2]
[346269716,1734855044335,-500.0,0.00019595,2]
[346269717,1734855044344,-500.0,0.00019595,2]
[346269718,1734855044353,-500.0,0.00019595,2]
[346269719,1734855044363,-500.0,0.00019595,2]
[346269720,1734855044373,-501.19981356,0.00019595,2]
[346269721,1734855044382,-500.0,0.00019595,2]
[346269722,1734855044392,-500.0,0.00019595,2]
[346269723,1734855044401,-500.0,0.00019595,2]
[346269724,1734855044411,-500.0,0.00019595,2]
[346269725,1734855044421,-339.11425063,0.00019595,2]
[346269726,1734855044430,-500.0,0.00019595,2]
[346269727,1734855044440,-526.68776141,0.00019595,2]
[346269728,1734855044449,-500.0,0.00019595,2]
[346269729,1734855044459,-522.93,0.00019595,2]
[346269730,1734855044468,-500.0,0.00019595,2]
[346269731,1734855044477,-500.0,0.00019595,2]
[346269732,1734855044487,-500.0,0.00019595,2]
[346269733,1734855044496,-985.97,0.00019595,2]
[346269734,1734855044506,-500.0,0.00019595,2]
[346269735,1734855044516,-532.75,0.00019595,2]
[346269736,1734855044526,-500.0,0.00019595,2]
[346269737,1734855044535,-500.0,0.00019595,2]
[346269738,1734855044545,-500.0,0.00019595,2]